fUST/lending_fUST_20251209
["ID","MTS","AMOUNT","RATE_DAILY","PERIOD"]
[398018367,1765293048546,-1000.0,0.00014247,2]
[398018368,1765293048556,-1000.0,0.00014247,2]
[398018369,1765293048565,-1000.0,0.00014247,2]
[398018370,1765293048574,-1000.0,0.00014247,2]
[398018371,1765293048584,-1000.0,0.00014247,2]
[398018372,1765293048593,-1000.0,0.00014247,2]
[398018373,1765293048603,-1000.0,0.00014247,2]
[398018374,1765293048613,-1000.0,0.00014247,2]
[398018375,1765293048622,-1000.0,0.00014247,2]
[398018376,1765293048632,-450.97245679,0.00014247,2]
[398018377,1765293048641,-1000.0,0.00014247,2]
[398018378,1765293048651,-1000.0,0.00014247,2]
[398018379,1765293048661,-465.67207532,0.00014247,2]
[398018380,1765293048671,-285.37436094,0.00014247,2]
[398018381,1765293048682,-260.0,0.00014247,2]
[398018382,1765293048691,-11376.68346606,0.00014254,2]
[398018383,1765293048700,-200.0,0.00014297,2]
[398018384,1765293048709,-100000.0,0.00014298,2]
[398018385,1765293048718,-221.12267893,0.00014367,2]
[398018386,1765293048727,-417.74904037,0.00014368,2]
[398018387,1765293048737,-1500.0,0.00014368,2]
[398018388,1765293048746,-1001.90676863,0.00014368,2]
[398018389,1765293048756,-1528.10396725,0.00014368,2]
[398018390,1765293048765,-1500.0,0.00014368,2]
[398018391,1765293048775,-1500.0,0.00014368,2]
[398018392,1765293048789,-501.55514305,0.00014368,2]
[398018393,1765293048799,-1506.81264803,0.00014368,2]
[398018394,1765293048809,-1500.0,0.00014368,2]
[398018395,1765293048818,-454.755414,0.00014368,2]
[398018396,1765293048829,-520.93302199,0.00014368,2]
[398018397,1765293048839,-1500.0,0.00014368,2]
[398018398,1765293048848,-1500.0,0.00014368,2]
[398018399,1765293048858,-1500.0,0.00014368,2]
[398018400,1765293048869,-1500.0,0.00014368,2]
[398018401,1765293048878,-881.96819292,0.00014368,2]
[398018402,1765293048887,-1500.0,0.00014368,2]
[398018403,1765293048897,-1164.1564678,0.00014368,2]
[398018404,1765293048906,-595.73738356,0.00014368,2]
[398018405,1765293048915,-1500.0,0.00014368,2]
[398018406,1765293048924,-1500.0,0.00014368,2]
[398018407,1765293048934,-1500.0,0.00014368,2]
[398018408,1765293048943,-1500.0,0.00014368,2]
[398018409,1765293048953,-1500.0,0.00014368,2]
[398018410,1765293048962,-1500.0,0.00014368,2]
[398018411,1765293048972,-1500.0,0.00014368,2]
[398018412,1765293048981,-1500.0,0.00014368,2]
[398018413,1765293048991,-1500.0,0.00014368,2]
[398018414,1765293049001,-1500.0,0.00014368,2]
[398018415,1765293049011,-1500.0,0.00014368,2]
[398018416,1765293049020,-502.11377292,0.00014368,2]
[398018417,1765293049029,-1500.0,0.00014368,2]
[398018418,1765293049038,-159.42162263,0.000145,2]
[398018419,1765293049047,-500.0,0.00014514,2]
[398018420,1765293049055,-500.0,0.00014521,2]
[398018421,1765293049065,-500.0,0.00014521,2]
[398018422,1765293049074,-713.97283296,0.00014531,2]
[398018423,1765293049084,-2000.0,0.00014539,7]
[398018424,1765293049092,-500.0,0.0001457,2]
[398018425,1765293049101,-500.0,0.00014622,2]
[398018426,1765293049110,-516.22384832,0.00014641,2]
[398018427,1765293049119,-500.0,0.00014662,2]
[398018428,1765293049128,-500.0,0.00014663,2]
[398018429,1765293049141,-900.0,0.00014768,2]
[398018430,1765293049150,-500.0,0.00014795,2]
[398018431,1765293049159,-500.0,0.00014795,2]
[398018432,1765293049168,-1501.25343106,0.00014795,2]
[398018433,1765293049179,-1500.0,0.00014795,2]
[398018434,1765293049187,-1500.0,0.00014795,2]
[398018435,1765293049197,-1500.0,0.00014795,2]
[398018436,1765293049205,-1500.0,0.00014795,2]
[398018437,1765293049214,-1500.0,0.00014795,2]
[398018438,1765293049223,-1500.0,0.00014795,2]
[398018439,1765293049232,-1500.0,0.00014795,2]
[398018440,1765293049241,-1500.0,0.00014795,2]
[398018441,1765293049249,-1500.0,0.00014795,2]
[398018442,1765293049258,-560.4483175,0.00014795,2]
[398018443,1765293049268,-1002.202545,0.00014795,2]
[398018444,1765293049277,-501.46449327,0.00014795,2]
[398018445,1765293049286,-1500.0,0.00014795,2]
[398018446,1765293049295,-1500.0,0.00014795,2]
[398018447,1765293049304,-1500.0,0.00014795,2]
[398018448,1765293049313,-1500.0,0.00014795,2]
[398018449,1765293049323,-1500.0,0.00014795,2]
[398018450,1765293049331,-1501.09316964,0.00014795,2]
[398018451,1765293049340,-1500.0,0.00014795,2]
[398018452,1765293049350,-264.91223348,0.00014795,2]
[398018453,1765293049359,-188.09072111,0.00014795,2]
[398018454,1765293049368,-1500.0,0.00014795,2]
[398018455,1765293049377,-1500.0,0.00014795,2]
[398018456,1765293049386,-1500.0,0.00014795,2]
[398018457,1765293049395,-1500.0,0.00014795,2]
[398018458,1765293049406,-1500.0,0.00014795,2]
[398018459,1765293049415,-494.48841154,0.00014795,2]
[398018460,1765293049424,-1500.0,0.00014795,2]
[398018461,1765293049434,-904.69382621,0.00014795,2]
[398018462,1765293049444,-299.43109836,0.00014795,2]
[398018463,1765293049453,-1500.0,0.00014795,2]
[398018464,1765293049463,-1247.6992399,0.00014795,2]
[398018465,1765293049472,-360.0,0.00014795,2]
[398018466,1765293049481,-8460.90646283,0.00014846,2]
[398018467,1765293049491,-5000.0,0.00014846,2]
[398018468,1765293049500,-5000.0,0.00014846,2]
[398018469,1765293049509,-5000.0,0.00014866,2]
[398018470,1765293049519,-500.0,0.00014873,2]
[398018471,1765293049528,-500.0,0.00014916,2]
[398018472,1765293049537,-2000.0,0.00014916,2]
[398018473,1765293049546,-1052.09243215,0.00014916,2]
[398018474,1765293049556,-375.91201647,0.00014916,2]
[398018475,1765293049566,-501.8483231,0.00014916,2]
[398018476,1765293049576,-2000.0,0.00014916,2]
[398018477,1765293049585,-2000.0,0.00014916,2]
[398018478,1765293049595,-2000.0,0.00014916,2]
[398018479,1765293049605,-2000.0,0.00014916,2]
[398018480,1765293049615,-2000.0,0.00014916,2]
[398018481,1765293049625,-2000.0,0.00014916,2]
[398018482,1765293049635,-504.30859739,0.00014916,2]
[398018483,1765293049645,-501.39264131,0.00014916,2]
[398018484,1765293049655,-501.65853726,0.00014916,2]
[398018485,1765293049664,-2000.0,0.00014916,2]
[398018486,1765293049676,-2000.0,0.00014916,2]
[398018487,1765293049686,-2000.0,0.00014916,2]
[398018488,1765293049696,-2000.0,0.00014916,2]
[398018489,1765293049705,-2000.0,0.00014916,2]
[398018490,1765293049714,-2000.0,0.00014916,2]
[398018491,1765293049724,-502.16076976,0.00014916,2]
[398018492,1765293049734,-168.0,0.00014932,3]
[398018493,1765293049747,-500.0,0.0001495,2]
[398018494,1765293049757,-2000.0,0.00014959,7]
[398018495,1765293049767,-500.0,0.0001496,2]
[398018496,1765293049777,-500.0,0.00014976,2]
[398018497,1765293049790,-150.16343141,0.00015,2]
[398018498,1765293049800,-7705.36520688,0.00015,5]
[398018499,1765293049814,-1000.0,0.00015,2]
[398018500,1765293049823,-500.64446447,0.00015,2]
[398018501,1765293049832,-800.0,0.00015,3]
[398018502,1765293049843,-1500.0,0.00015,2]
[398018503,1765293049852,-736.87642716,0.00015,2]
[398018504,1765293049862,-529.67787792,0.00015,3]
[398018505,1765293049872,-834.0504184,0.00015,2]
[398018506,1765293049883,-976.5,0.00015,2]
[398018507,1765293049893,-770.0,0.00015,2]
[398018508,1765293049902,-500.0,0.00015036,2]
[398018509,1765293049911,-500.0,0.00015068,2]
[398018510,1765293049921,-739.573918,0.00015068,2]
[398018511,1765293049932,-500.0,0.00015068,2]
[398018512,1765293049941,-800.0,0.00015068,2]
[398018513,1765293049951,-740.38982778,0.00015079,2]
[398018514,1765293049961,-500.0,0.00015154,2]
[398018515,1765293049971,-500.0,0.00015214,2]
[398018516,1765293049980,-500.0,0.0001522,3]
[398018517,1765293049991,-419.61,0.00015226,30]
[398018518,1765293050000,-500.0,0.00015287,2]
[398018519,1765293050010,-1200.0,0.00015316,2]
[398018520,1765293050020,-460.0,0.00015342,2]
[398018521,1765293050030,-500.0,0.00015342,2]
[398018522,1765293050039,-2000.0,0.00015342,2]
[398018523,1765293050049,-2018.28853728,0.00015342,2]
[398018524,1765293050059,-1049.72356433,0.00015342,2]
[398018525,1765293050069,-2000.0,0.00015342,2]
[398018526,1765293050079,-2000.0,0.00015342,2]
[398018527,1765293050089,-2000.0,0.00015342,2]
[398018528,1765293050099,-2000.0,0.00015342,2]
[398018529,1765293050108,-2000.0,0.00015342,2]
[398018530,1765293050118,-692.58437112,0.00015342,2]
[398018531,1765293050128,-546.91796828,0.00015342,2]
[398018532,1765293050138,-281.87180625,0.00015342,2]
[398018533,1765293050149,-2000.0,0.00015342,2]
[398018534,1765293050159,-2000.0,0.00015342,2]
[398018535,1765293050168,-2000.0,0.00015342,2]
[398018536,1765293050179,-714.90679629,0.00015342,2]
[398018537,1765293050192,-1002.19074783,0.00015342,2]
[398018538,1765293050202,-429.78004077,0.00015342,2]
[398018539,1765293050211,-2000.0,0.00015342,2]
[398018540,1765293050221,-2000.0,0.00015342,2]
[398018541,1765293050230,-2000.0,0.00015342,2]
[398018542,1765293050240,-2000.0,0.00015342,2]
[398018543,1765293050250,-2000.0,0.00015342,2]
[398018544,1765293050260,-500.0,0.00015359,2]
[398018545,1765293050269,-940.7879992,0.00015362,2]
[398018546,1765293050279,-475.0,0.00015369,2]
[398018547,1765293050289,-475.0,0.00015369,2]
[398018548,1765293050299,-2000.0,0.00015379,7]
[398018549,1765293050308,-500.0,0.00015388,2]
[398018550,1765293050318,-2500.0,0.00015464,2]
[398018551,1765293050327,-2500.0,0.00015464,2]
[398018552,1765293050337,-2500.0,0.00015464,2]
[398018553,1765293050346,-2500.0,0.00015464,2]
[398018554,1765293050356,-2500.0,0.00015464,2]
[398018555,1765293050366,-2500.0,0.00015464,2]
[398018556,1765293050376,-2035.81810945,0.00015464,2]
[398018557,1765293050386,-421.17979072,0.00015464,2]
[398018558,1765293050395,-2500.0,0.00015464,2]
[398018559,1765293050405,-2500.0,0.00015464,2]
[398018560,1765293050414,-2500.0,0.00015464,2]
[398018561,1765293050424,-2500.0,0.00015464,2]
[398018562,1765293050434,-2500.0,0.00015464,2]
[398018563,1765293050443,-1000.0,0.00015478,2]
[398018564,1765293050453,-1000.0,0.00015478,2]
[398018565,1765293050462,-579.0,0.00015478,2]
[398018566,1765293050472,-475.0,0.00015518,2]
[398018567,1765293050482,-475.0,0.00015518,2]
[398018568,1765293050492,-756.29715118,0.00015565,2]
[398018569,1765293050501,-475.0,0.00015582,2]
[398018570,1765293050511,-475.0,0.00015582,2]
[398018571,1765293050520,-475.0,0.00015582,2]
[398018572,1765293050529,-500.0,0.00015616,2]
[398018573,1765293050540,-767.7842514,0.00015627,2]
[398018574,1765293050549,-475.0,0.00015725,2]
[398018575,1765293050558,-475.0,0.00015725,2]
[398018576,1765293050567,-2000.0,0.00015799,7]
[398018577,1765293050577,-475.0,0.00015801,2]
[398018578,1765293050588,-500.0,0.0001581,2]
[398018579,1765293050597,-494.15573547,0.00015817,2]
[398018580,1765293050607,-1500.0,0.00015864,2]
[398018581,1765293050616,-475.0,0.0001589,2]
[398018582,1765293050625,-475.0,0.0001589,2]
[398018583,1765293050635,-560.0,0.0001589,2]
[398018584,1765293050644,-500.0,0.0001589,2]
[398018585,1765293050654,-2260.86926666,0.0001589,2]
[398018586,1765293050664,-2500.0,0.0001589,2]
[398018587,1765293050673,-2500.0,0.0001589,2]
[398018588,1765293050683,-2500.0,0.0001589,2]
[398018589,1765293050693,-2500.0,0.0001589,2]
[398018590,1765293050703,-2500.0,0.0001589,2]
[398018591,1765293050712,-2500.0,0.0001589,2]
[398018592,1765293050722,-2500.0,0.0001589,2]
[398018593,1765293050731,-1003.09611503,0.0001589,2]
[398018594,1765293050740,-1366.43961479,0.0001589,2]
[398018595,1765293050750,-2500.0,0.0001589,2]
[398018596,1765293050759,-2500.0,0.0001589,2]
[398018597,1765293050774,-2159.93166523,0.0001589,2]
[398018598,1765293050786,-2500.0,0.0001589,2]
[398018599,1765293050797,-166.75,0.000159,2]
[398018600,1765293050980,-157.4376836,0.000159,2]
[398018601,1765293050990,-157.43768356,0.000159,2]
[398018602,1765293051002,-157.43768356,0.000159,2]
[398018603,1765293051011,-157.43768356,0.000159,2]
[398018604,1765293051021,-157.43768356,0.000159,2]
[398018605,1765293051031,-157.43768356,0.000159,2]
[398018606,1765293051040,-500.0,0.00015902,2]
[398018607,1765293051050,-499.3,0.00015992,2]
[398018608,1765293051059,-214.95323695,0.00016,2]
[398018609,1765293051069,-740.64296,0.00016,2]
[398018610,1765293051079,-1915.6,0.00016,14]
[398018611,1765293051089,-500.0,0.00016,2]
[398018612,1765293051100,-241.0,0.00016,2]
[398018613,1765293051110,-3000.0,0.00016,2]
[398018614,1765293051120,-3000.0,0.0001601,2]
[398018615,1765293051130,-3000.0,0.00016012,2]
[398018616,1765293051140,-3000.0,0.00016012,2]
[398018617,1765293051151,-3000.0,0.00016012,2]
[398018618,1765293051161,-3000.0,0.00016012,2]
[398018619,1765293051171,-3000.0,0.00016012,2]
[398018620,1765293051182,-3000.0,0.00016012,2]
[398018621,1765293051192,-3000.0,0.00016012,2]
[398018622,1765293051202,-3000.0,0.00016012,2]
[398018623,1765293051212,-3000.0,0.00016012,2]
[398018624,1765293051222,-3000.0,0.00016012,2]
[398018625,1765293051232,-3000.0,0.00016012,2]
[398018626,1765293051241,-3000.0,0.0001602,2]
[398018627,1765293051251,-169.0,0.00016027,3]
[398018628,1765293051260,-3000.0,0.0001603,2]
[398018629,1765293051270,-3000.0,0.0001604,2]
[398018630,1765293051279,-3000.0,0.0001605,2]
[398018631,1765293051289,-520.10106348,0.0001605,2]
[398018632,1765293051298,-3000.0,0.0001606,2]
[398018633,1765293051308,-3000.0,0.0001607,2]
[398018634,1765293051318,-511.5219134,0.00016075,2]
[398018635,1765293051327,-3000.0,0.0001608,2]
[398018636,1765293051337,-3000.0,0.0001609,2]
[398018637,1765293051347,-3000.0,0.000161,2]
[398018638,1765293051357,-3000.0,0.0001611,2]
[398018639,1765293051367,-3000.0,0.0001612,2]
[398018640,1765293051376,-475.0,0.00016129,2]
[398018641,1765293051386,-475.0,0.00016129,2]
[398018642,1765293051396,-3000.0,0.0001613,2]
[398018643,1765293051406,-3000.0,0.0001614,2]
[398018644,1765293051416,-3000.0,0.0001615,2]
[398018645,1765293051426,-3000.0,0.0001616,2]
[398018646,1765293051440,-500.0,0.00016164,2]
[398018647,1765293051451,-1600.0,0.00016164,2]
[398018648,1765293051461,-3000.0,0.0001617,2]
[398018649,1765293051471,-796.19226871,0.00016175,2]
[398018650,1765293051480,-3000.0,0.0001618,2]
[398018651,1765293051490,-3000.0,0.0001619,2]
[398018652,1765293051500,-3000.0,0.000162,2]
[398018653,1765293051509,-3000.0,0.0001621,2]
[398018654,1765293051519,-2000.0,0.00016219,7]
[398018655,1765293051529,-3000.0,0.0001622,2]
[398018656,1765293051539,-3000.0,0.0001623,2]
[398018657,1765293051548,-3000.0,0.0001624,2]
[398018658,1765293051558,-503.53,0.00016241,30]
[398018659,1765293051568,-3000.0,0.0001625,2]
[398018660,1765293051578,-3000.0,0.0001626,2]
[398018661,1765293051587,-3000.0,0.0001627,2]
[398018662,1765293051597,-3000.0,0.0001628,2]
[398018663,1765293051606,-3000.0,0.0001629,2]
[398018664,1765293051616,-3000.0,0.000163,2]
[398018665,1765293051625,-3000.0,0.0001631,2]
[398018666,1765293051635,-3000.0,0.0001632,2]
[398018667,1765293051644,-3000.0,0.0001633,2]
[398018668,1765293051653,-3000.0,0.0001634,2]
[398018669,1765293051663,-3000.0,0.0001635,2]
[398018670,1765293051672,-3000.0,0.0001636,2]
[398018671,1765293051685,-3000.0,0.0001637,2]
[398018672,1765293051694,-3000.0,0.0001638,2]
[398018673,1765293051704,-3000.0,0.0001639,2]
[398018674,1765293051713,-3000.0,0.000164,2]
[398018675,1765293051723,-3000.0,0.0001641,2]
[398018676,1765293051733,-1800.0,0.00016412,2]
[398018677,1765293051742,-3000.0,0.0001642,2]
[398018678,1765293051752,-3000.0,0.0001643,2]
[398018679,1765293051761,-300.0,0.00016438,2]
[398018680,1765293051770,-300.0,0.00016438,2]
[398018681,1765293051781,-300.0,0.00016438,2]
[398018682,1765293051795,-300.0,0.00016438,2]
[398018683,1765293051805,-304.57765018,0.00016438,2]
[398018684,1765293051814,-300.0,0.00016438,2]
[398018685,1765293051823,-300.0,0.00016438,2]
[398018686,1765293051833,-400.0,0.00016438,2]
[398018687,1765293051843,-300.0,0.00016438,2]
[398018688,1765293051852,-300.0,0.00016438,2]
[398018689,1765293051861,-400.0,0.00016438,2]
[398018690,1765293051870,-300.0,0.00016438,2]
[398018691,1765293051879,-300.0,0.00016438,2]
[398018692,1765293051889,-300.0,0.00016438,2]
[398018693,1765293051898,-300.0,0.00016438,2]
[398018694,1765293051907,-300.0,0.00016438,2]
[398018695,1765293051917,-300.0,0.00016438,2]
[398018696,1765293051927,-300.0,0.00016438,2]
[398018697,1765293051940,-300.0,0.00016438,2]
[398018698,1765293051950,-300.0,0.00016438,2]
[398018699,1765293051959,-300.0,0.00016438,2]
[398018700,1765293051968,-300.0,0.00016438,2]
[398018701,1765293051978,-300.0,0.00016438,2]
[398018702,1765293051987,-400.0,0.00016438,2]
[398018703,1765293051997,-500.0,0.00016438,2]
[398018704,1765293052008,-590.46238485,0.00016438,2]
[398018705,1765293052018,-660.0,0.00016438,2]
[398018706,1765293052027,-500.0,0.00016438,2]
[398018707,1765293052036,-306.561873,0.00016438,2]
[398018708,1765293052045,-306.561873,0.00016438,2]
[398018709,1765293052055,-306.561873,0.00016438,2]
[398018710,1765293052064,-306.561873,0.00016438,2]
[398018711,1765293052074,-306.561873,0.00016438,2]
[398018712,1765293052084,-306.561873,0.00016438,2]
[398018713,1765293052093,-306.561873,0.00016438,2]
[398018714,1765293052102,-306.561873,0.00016438,2]
[398018715,1765293052112,-306.561873,0.00016438,2]
[398018716,1765293052121,-306.561873,0.00016438,2]
[398018717,1765293052131,-306.561873,0.00016438,2]
[398018718,1765293052140,-306.561873,0.00016438,2]
[398018719,1765293052150,-306.561873,0.00016438,2]
[398018720,1765293052159,-306.561873,0.00016438,2]
[398018721,1765293052168,-306.561873,0.00016438,2]
[398018722,1765293052180,-306.561873,0.00016438,2]
[398018723,1765293052189,-306.561873,0.00016438,2]
[398018724,1765293052199,-306.561873,0.00016438,2]
[398018725,1765293052207,-306.561873,0.00016438,2]
[398018726,1765293052216,-306.561879,0.00016438,2]
[398018727,1765293052226,-330.04903,0.00016438,2]
[398018728,1765293052235,-330.04903,0.00016438,2]
[398018729,1765293052244,-330.04903,0.00016438,2]
[398018730,1765293052254,-330.04903,0.00016438,2]
[398018731,1765293052263,-330.04903,0.00016438,2]
[398018732,1765293052273,-330.04903,0.00016438,2]
[398018733,1765293052283,-330.04903,0.00016438,2]
[398018734,1765293052293,-330.04903,0.00016438,2]
[398018735,1765293052301,-330.04903,0.00016438,2]
[398018736,1765293052310,-330.04903,0.00016438,2]
[398018737,1765293052320,-330.04903,0.00016438,2]
[398018738,1765293052329,-330.04903,0.00016438,2]
[398018739,1765293052338,-330.04903,0.00016438,2]
[398018740,1765293052347,-330.04903,0.00016438,2]
[398018741,1765293052356,-330.04903,0.00016438,2]
[398018742,1765293052366,-330.04903,0.00016438,2]
[398018743,1765293052376,-330.04903,0.00016438,2]
[398018744,1765293052386,-330.04903,0.00016438,2]
[398018745,1765293052396,-330.04903,0.00016438,2]
[398018746,1765293052406,-330.049029,0.00016438,2]
[398018747,1765293052416,-200.0,0.00016438,3]
[398018748,1765293052426,-200.0,0.00016438,3]
[398018749,1765293052436,-200.0,0.00016438,3]
[398018750,1765293052446,-200.0,0.00016438,3]
[398018751,1765293052455,-200.0,0.00016438,3]
[398018752,1765293052466,-200.0,0.00016438,3]
[398018753,1765293052475,-154.32932783,0.00016438,2]
[398018754,1765293052485,-163.54795743,0.00016438,2]
[398018755,1765293052495,-3000.0,0.00016438,2]
[398018756,1765293052504,-3000.0,0.00016438,2]
[398018757,1765293052514,-649.58697525,0.00016438,2]
[398018758,1765293052523,-3000.0,0.00016438,2]
[398018759,1765293052532,-3000.0,0.00016438,2]
[398018760,1765293052542,-1618.94414444,0.00016438,2]
[398018761,1765293052552,-3000.0,0.00016438,2]
[398018762,1765293052561,-3000.0,0.00016438,2]
[398018763,1765293052570,-3000.0,0.00016438,2]
[398018764,1765293052580,-3000.0,0.00016438,2]
[398018765,1765293052589,-259.02910868,0.00016438,2]
[398018766,1765293052599,-3000.0,0.0001644,2]
[398018767,1765293052608,-181.82,0.0001644,2]
[398018768,1765293052618,-181.82,0.0001644,2]
[398018769,1765293052627,-181.82,0.0001644,2]
[398018770,1765293052637,-181.82,0.0001644,2]
[398018771,1765293052646,-3000.0,0.0001645,2]
[398018772,1765293052656,-3000.0,0.0001646,2]
[398018773,1765293052665,-3000.0,0.0001647,2]
[398018774,1765293052675,-3000.0,0.0001648,2]
[398018775,1765293052686,-3000.0,0.0001649,2]
[398018776,1765293052695,-3000.0,0.000165,2]
[398018777,1765293052705,-3000.0,0.0001651,2]
[398018778,1765293052714,-3000.0,0.0001652,2]
[398018779,1765293052723,-3000.0,0.0001653,2]
[398018780,1765293052732,-3000.0,0.0001654,2]
[398018781,1765293052742,-3000.0,0.0001655,2]
[398018782,1765293052751,-3000.0,0.0001656,2]
[398018783,1765293052760,-3500.0,0.0001656,2]
[398018784,1765293052771,-3500.0,0.0001656,2]
[398018785,1765293052781,-3500.0,0.0001656,2]
[398018786,1765293052796,-3500.0,0.0001656,2]
[398018787,1765293052805,-3500.0,0.0001656,2]
[398018788,1765293052815,-773.23839183,0.0001656,2]
[398018789,1765293052824,-3500.0,0.0001656,2]
[398018790,1765293052835,-3500.0,0.0001656,2]
[398018791,1765293052844,-3500.0,0.0001656,2]
[398018792,1765293052854,-3500.0,0.0001656,2]
[398018793,1765293052865,-2829.06872025,0.0001656,2]
[398018794,1765293052874,-3000.0,0.0001657,2]
[398018795,1765293052883,-5640.978333,0.0001658,2]
[398018796,1765293052893,-2000.0,0.00016639,7]
[398018797,1765293052903,-570.24727431,0.00016641,2]
[398018798,1765293052912,-500.0,0.00016712,2]
[398018799,1765293052922,-825.65138265,0.00016723,2]
[398018800,1765293052933,-2100.0,0.0001696,2]
[398018801,1765293052943,-760.0,0.00016986,2]
[398018802,1765293052953,-500.0,0.00016986,2]
[398018803,1765293052963,-566.17723511,0.00016986,2]
[398018804,1765293052973,-3500.0,0.00016986,2]
[398018805,1765293052983,-3500.0,0.00016986,2]
[398018806,1765293052992,-3500.0,0.00016986,2]
[398018807,1765293053003,-3500.0,0.00016986,2]
[398018808,1765293053014,-3500.0,0.00016986,2]
[398018809,1765293053026,-3500.0,0.00016986,2]
[398018810,1765293053036,-3500.0,0.00016986,2]
[398018811,1765293053046,-110995.84867739,0.00017,2]
[398018812,1765293053057,-1000.0,0.00017026,2]
[398018813,1765293053066,-1000.0,0.00017026,2]
[398018814,1765293053077,-1000.0,0.00017026,2]
[398018815,1765293053087,-2000.0,0.00017059,7]
[398018816,1765293053097,-475.0,0.000171,2]
[398018817,1765293053107,-4000.0,0.00017108,2]
[398018818,1765293053117,-4000.0,0.00017108,2]
[398018819,1765293053127,-4000.0,0.00017108,2]
[398018820,1765293053137,-4000.0,0.00017108,2]
[398018821,1765293053147,-411.41574636,0.00017108,2]
[398018822,1765293053158,-4000.0,0.00017108,2]
[398018823,1765293053168,-4000.0,0.00017108,2]
[398018824,1765293053182,-4000.0,0.00017108,2]
[398018825,1765293053201,-4000.0,0.00017108,2]
[398018826,1765293053212,-170.0,0.00017123,3]
[398018827,1765293053222,-587.45,0.00017256,30]
[398018828,1765293053232,-500.0,0.0001726,2]
[398018829,1765293053242,-2400.0,0.0001726,2]
[398018830,1765293053252,-267.0,0.00017275,2]
[398018831,1765293053262,-475.0,0.00017365,2]
[398018832,1765293053271,-475.0,0.00017365,2]
[398018833,1765293053280,-327.62691622,0.000174,2]
[398018834,1765293053290,-309.0,0.00017447,2]
[398018835,1765293053300,-2000.0,0.00017479,7]
[398018836,1765293053310,-37100.0,0.000175,2]
[398018837,1765293053320,-2400.0,0.00017508,2]
[398018838,1765293053331,-860.0,0.00017534,2]
[398018839,1765293053341,-500.0,0.00017534,2]
[398018840,1765293053351,-4000.0,0.00017534,2]
[398018841,1765293053361,-4000.0,0.00017534,2]
[398018842,1765293053370,-3001.24766935,0.00017534,2]
[398018843,1765293053379,-4000.0,0.00017534,2]
[398018844,1765293053389,-4000.0,0.00017534,2]
[398018845,1765293053399,-4000.0,0.00017534,2]
[398018846,1765293053409,-4000.0,0.00017534,2]
[398018847,1765293053419,-2127.59107977,0.000176,2]
[398018848,1765293053428,-375.0,0.00017633,2]
[398018849,1765293053438,-4500.0,0.00017656,2]
[398018850,1765293053448,-4500.0,0.00017656,2]
[398018851,1765293053458,-4500.0,0.00017656,2]
[398018852,1765293053468,-4500.0,0.00017656,2]
[398018853,1765293053478,-4500.0,0.00017656,2]
[398018854,1765293053488,-1598.42739473,0.00017656,2]
[398018855,1765293053497,-4500.0,0.00017656,2]
[398018856,1765293053507,-4500.0,0.00017656,2]
[398018857,1765293053516,-250000.0,0.000178,3]
[398018858,1765293053526,-500.0,0.00017808,2]
[398018859,1765293053536,-2000.0,0.000179,7]
[398018860,1765293053546,-475.0,0.00017908,2]
[398018861,1765293053555,-161067.58326788,0.00018,2]
[398018862,1765293053564,-29887.94851762,0.00018,2]
[398018863,1765293053574,-303.38668857,0.00018,3]
[398018864,1765293053584,-2700.0,0.00018056,2]
[398018865,1765293053594,-960.0,0.00018082,2]
[398018866,1765293053604,-500.0,0.00018082,2]